bitfinex/quotes_BTCUSD_20250723
["timestamp","ask_amount","ask_price","bid_price","bid_amount"]
[1753289927794,0.34956322,117900.0,117890.0,0.58086237]
[1753289927999,0.34108189,117900.0,117890.0,0.58086237]
[1753289928175,0.40092007,117900.0,117890.0,0.55718018]
[1753289928411,0.39243853,117900.0,117890.0,0.55718018]
[1753289928633,0.39243853,117900.0,117890.0,0.56566237]
[1753289929062,0.38395691,117900.0,117890.0,0.54021544]
[1753289929497,0.38395691,117900.0,117890.0,0.55718033]
[1753289929710,0.38395691,117900.0,117890.0,0.37904825]
[1753289929975,0.37547522,117900.0,117890.0,0.01249248]
[1753289930187,0.37547522,117900.0,117890.0,0.54869792]
[1753289930416,0.37547522,117900.0,117890.0,0.55718033]
[1753289930871,0.37547522,117900.0,117890.0,0.54869792]
[1753289931071,0.14600154,117900.0,117890.0,0.58262697]
[1753289931273,0.17409673,117900.0,117890.0,0.58262647]
[1753289931498,0.17144618,117900.0,117890.0,0.58262647]
[1753289931943,0.34100189,117900.0,117890.0,0.56566244]
[1753289932143,0.1459214,117900.0,117890.0,0.59872661]
[1753289932333,0.24320633,117900.0,117890.0,0.59872661]
[1753289932549,0.24320633,117900.0,117890.0,0.61372661]
[1753289932768,0.42132337,117900.0,117890.0,0.55718018]
[1753289932990,0.41284219,117900.0,117890.0,0.54021544]
[1753289933217,0.41284219,117900.0,117890.0,0.55718033]
[1753289933638,0.39587917,117900.0,117890.0,0.54021544]
[1753289933867,0.39587917,117900.0,117890.0,0.55718025]
[1753289934302,0.39587917,117900.0,117890.0,0.55718033]
[1753289934503,0.39587917,117900.0,117890.0,0.57414492]
[1753289934951,0.39587917,117900.0,117890.0,0.58262711]
[1753289935282,0.39587917,117900.0,117890.0,0.57414492]
[1753289935489,0.31470887,117900.0,117890.0,0.56566266]
[1753289935701,0.31470887,117900.0,117890.0,0.55718033]
[1753289935894,0.31470887,117900.0,117890.0,0.57414492]
[1753289936304,0.16203603,117900.0,117890.0,0.59872661]
[1753289936699,0.03392523,117900.0,117890.0,0.59872661]
[1753289936910,0.03392516,117900.0,117890.0,0.61522661]
[1753289937119,0.03392516,117900.0,117890.0,0.61700661]
[1753289937329,0.02544369,117900.0,117890.0,0.61700661]
[1753289937619,0.04240685,117900.0,117890.0,0.61700661]
[1753289937839,0.17132523,117900.0,117890.0,0.61700661]
[1753289938054,0.17980685,117900.0,117890.0,0.61700661]
[1753289938478,0.17132523,117900.0,117890.0,0.61700661]
[1753289938679,0.17980685,117900.0,117890.0,0.61700661]
[1753289938905,0.17132523,117900.0,117890.0,0.61700661]
[1753289939117,0.16284355,117900.0,117890.0,0.61700661]
[1753289939342,0.15436229,117900.0,117890.0,0.61700661]
[1753289939733,0.16284362,117900.0,117890.0,0.61700661]
[1753289940124,0.17132516,117900.0,117890.0,0.61522661]
[1753289940553,0.21386866,117900.0,117890.0,0.61522661]
[1753289941167,0.21386859,117900.0,117890.0,0.59872661]
[1753289941415,0.21386859,117900.0,117890.0,0.58262661]
[1753289941620,0.18838461,117900.0,117890.0,0.59902661]
[1753289941802,0.16280369,117900.0,117890.0,0.59902661]
[1753289942034,0.17393578,117900.0,117890.0,0.59902661]
[1753289942179,0.17128523,117900.0,117890.0,0.59902661]
[1753289942606,0.17128531,117900.0,117890.0,0.59902661]
[1753289943161,0.17128523,117900.0,117890.0,0.42536694]
[1753289943339,0.17976685,117900.0,117890.0,0.57861661]
[1753289943780,0.17976743,117900.0,117890.0,0.57861661]
[1753289943975,0.24650572,117900.0,117890.0,0.57861661]
[1753289944628,0.25498734,117900.0,117890.0,0.21206084]
[1753289944832,0.24650572,117900.0,117890.0,0.57861661]
[1753289945186,0.25498726,117900.0,117890.0,0.57861661]
[1753289945399,0.24650572,117900.0,117890.0,0.57861661]
[1753289945975,0.16280405,117900.0,117890.0,0.57861661]
[1753289946180,0.15697306,117900.0,117890.0,0.57861661]
[1753289946330,0.17393593,117900.0,117890.0,0.57861661]
[1753289946685,0.17128538,117900.0,117890.0,0.57861661]
[1753289948767,0.17128538,117900.0,117890.0,0.57861661]
[1753289949009,0.17976707,117900.0,117890.0,0.57861661]
[1753289949417,0.42776286,117900.0,117890.0,0.57013463]
[1753289949622,0.41928153,117900.0,117890.0,0.57013463]
[1753289950173,0.41080013,117900.0,117890.0,0.53620544]
[1753289950380,0.40231866,117900.0,117890.0,0.54468792]
[1753289951488,0.42078866,117900.0,117890.0,0.54468792]
[1753289951877,0.42078866,117900.0,117890.0,0.55317018]
[1753289952761,0.42078866,117900.0,117890.0,0.5616523]
[1753289952949,0.42078866,117900.0,117890.0,0.55317018]
[1753289953166,0.42078866,117900.0,117890.0,0.18661441]
[1753289953369,0.42078866,117900.0,117890.0,0.55317018]
[1753289954290,0.42078866,117900.0,117890.0,0.20357872]
[1753289954495,0.42078866,117900.0,117890.0,0.57013449]
[1753289955528,0.42078866,117900.0,117890.0,0.20357872]
[1753289955728,0.42078866,117900.0,117890.0,0.57013449]
[1753289955934,0.38078866,117900.0,117890.0,0.57013449]
[1753289956588,0.86231866,117900.0,117890.0,0.57013449]
[1753289957889,0.70116485,117900.0,117890.0,0.57013449]
[1753289958105,0.7955802,117900.0,117890.0,0.57861654]
[1753289960581,0.7955802,117900.0,117890.0,0.56165237]
[1753289960824,0.81078704,117900.0,117890.0,0.36655577]
[1753289961046,0.81078704,117900.0,117890.0,0.53620544]
[1753289961279,0.89526434,117900.0,117890.0,0.53620544]
[1753289961982,0.89526434,117900.0,117890.0,0.54468792]
[1753289963130,0.88678258,117900.0,117890.0,0.54468792]
[1753289963378,0.01696532,117880.0,117870.0,0.20077845]
[1753289963595,0.01696532,117880.0,117870.0,0.50387577]
[1753289963596,0.32374988,117880.0,117870.0,0.50387577]
[1753289963808,0.35337711,117880.0,117870.0,0.68203799]
[1753289964017,0.35333711,117880.0,117870.0,0.68199799]
[1753289964691,0.35438638,117880.0,117870.0,0.68199814]
[1753289964892,0.34590333,117880.0,117870.0,0.68299814]
[1753289965281,0.34590333,117880.0,117870.0,0.69896569]
[1753289965488,0.34690333,117880.0,117870.0,0.69048199]
[1753289965712,0.34690333,117880.0,117870.0,0.13728]
[1753289965905,0.37824191,117880.0,117870.0,0.36675577]
[1753289966146,0.37824191,117880.0,117870.0,0.54491814]
[1753289966777,0.38672511,117880.0,117870.0,0.18684607]
[1753289966984,0.38672511,117880.0,117870.0,0.54491814]
[1753289967195,0.38672511,117880.0,117870.0,0.55340191]
[1753289967827,0.38672511,117880.0,117870.0,0.56188561]
[1753289968037,0.38672511,117880.0,117870.0,0.55340191]
[1753289968368,0.39520809,117880.0,117870.0,0.56188561]
[1753289968573,0.39520809,117880.0,117870.0,0.5703691]
[1753289968772,0.20268807,117880.0,117870.0,0.57885251]
[1753289969037,0.2026875,117880.0,117870.0,0.57885251]
[1753289969457,0.21117048,117880.0,117870.0,0.21229674]
[1753289969862,0.20268743,117880.0,117870.0,0.57885251]
[1753289970082,0.21965339,117880.0,117870.0,0.57885251]
[1753289970408,0.21965332,117880.0,117870.0,0.57885251]
[1753289970892,0.21117034,117880.0,117870.0,0.57885251]
[1753289971263,0.20268743,117880.0,117870.0,0.57885251]
[1753289971458,0.06560743,117880.0,117870.0,0.21229674]
[1753289971669,0.39188867,117880.0,117870.0,0.57885251]
[1753289971842,0.21957361,117880.0,117870.0,0.57885251]
[1753289972259,0.21109048,117880.0,117870.0,0.57885251]
[1753289972647,0.21109041,117880.0,117870.0,0.57885251]
[1753289973707,0.21957354,117880.0,117870.0,0.57885251]
[1753289974255,0.3892376,117880.0,117870.0,0.57885251]
[1753289974457,0.4346778,117880.0,117870.0,0.56188561]
[1753289974672,0.42619496,117880.0,117870.0,0.54491799]
[1753289974864,0.42619496,117880.0,117870.0,0.55340169]
[1753289976180,0.42619496,117880.0,117870.0,0.57036888]
[1753289976384,0.42619496,117880.0,117870.0,0.19532955]
[1753289976587,0.41771198,117880.0,117870.0,0.19532955]
[1753289976794,0.40922885,117880.0,117870.0,0.17836222]
[1753289976999,0.40074565,117880.0,117870.0,0.54491814]
[1753289977207,0.41819467,117880.0,117870.0,0.0002]
[1753289977410,0.50267197,117880.0,117870.0,0.36675577]
[1753289977620,0.50127197,117880.0,117870.0,0.36655577]
[1753289977830,0.00848356,117870.0,117860.0,0.34054387]
[1753289978041,0.0381201,117870.0,117860.0,0.70709964]
[1753289978242,0.04958359,117870.0,117860.0,0.70709964]
[1753289978693,0.05806736,117870.0,117860.0,0.70709964]
[1753289978905,0.06655106,117870.0,117860.0,0.69861565]
[1753289979112,0.06655106,117870.0,117860.0,0.69961565]
[1753289979358,0.05806729,117870.0,117860.0,0.70061565]
[1753289980012,0.07503491,117870.0,117860.0,0.32557582]
[1753289980257,0.07503491,117870.0,117860.0,0.7006158]
[1753289980500,0.07503491,117870.0,117860.0,0.70909993]
[1753289980750,0.24471336,117870.0,117860.0,0.70909993]
[1753289981235,0.24471336,117870.0,117860.0,0.34254416]
[1753289981476,0.24471379,117870.0,117860.0,0.70909993]
[1753289981686,0.24577653,117870.0,117860.0,0.32557618]
[1753289981915,0.26157653,117870.0,117860.0,0.32557618]
[1753289982344,0.26157653,117870.0,117860.0,0.69213195]
[1753289982781,0.25309261,117870.0,117860.0,0.70910043]
[1753289982993,0.08341387,117870.0,117860.0,0.70910043]
[1753289983523,0.08341387,117870.0,117860.0,0.34254466]
[1753289983771,0.08341387,117870.0,117860.0,0.70910043]
[1753289984006,0.06644654,117870.0,117860.0,0.70910043]
[1753289984234,0.01146334,117870.0,117860.0,0.70910043]
[1753289984471,0.0199469,117870.0,117860.0,0.34254466]
[1753289984729,0.20659297,117870.0,117860.0,0.70910043]
[1753289984963,0.21507689,117870.0,117860.0,0.70910058]
[1753289985193,0.28684002,117870.0,117860.0,0.71758479]
[1753289985435,0.09171003,117870.0,117860.0,0.71758428]
[1753289985671,0.00298,117870.0,117860.0,0.71758428]
[1753289985890,0.00848327,117870.0,117860.0,0.74898428]
[1753289986367,0.21517816,117880.0,117870.0,0.19512934]
[1753289986602,0.0691604,117880.0,117870.0,0.56168511]
[1753289986834,0.24730759,117880.0,117870.0,0.19512934]
[1753289987073,0.31117052,117880.0,117870.0,0.56168526]
[1753289987308,0.30268783,117880.0,117870.0,0.56168526]
[1753289987533,0.29520492,117880.0,117870.0,0.54471807]
[1753289987955,0.23847622,117880.0,117870.0,0.55320184]
[1753289988168,0.23847622,117880.0,117870.0,0.56168554]
[1753289988367,0.23847622,117880.0,117870.0,0.57016917]
[1753289988842,0.23847622,117880.0,117870.0,0.2036134]
[1753289989048,0.23947622,117880.0,117870.0,0.54471807]
[1753289989259,0.23099317,117880.0,117870.0,0.36655577]
[1753289989473,0.27625432,117880.0,117870.0,0.36655577]
[1753289989714,0.27625432,117880.0,117860.0,0.34054394]
[1753289989950,0.18664585,117870.0,117860.0,0.33206002]
[1753289990170,0.01696712,117870.0,117860.0,0.33206002]
[1753289991017,0.02545046,117870.0,117860.0,0.33206002]
[1753289991255,0.03393416,117870.0,117860.0,0.69861579]
[1753289991480,0.01696683,117870.0,117860.0,0.69861579]
[1753289991703,0.01696683,117870.0,117860.0,0.69961579]
[1753289992131,0.22796302,117880.0,117870.0,0.17816222]
[1753289992350,0.22796302,117880.0,117870.0,0.55320169]
[1753289992554,0.22999302,117880.0,117870.0,0.54471799]
[1753289992757,0.22899302,117880.0,117870.0,0.17816222]
[1753289993000,0.22899302,117880.0,117870.0,0.54471799]
[1753289993216,0.22899302,117880.0,117870.0,0.54471807]
[1753289993650,0.00848406,117860.0,117850.0,0.20080695]
[1753289993885,0.00848406,117860.0,117850.0,0.34708201]
[1753289994104,0.00848406,117860.0,117850.0,0.69863778]
[1753289994324,0.01696834,117860.0,117850.0,0.69863778]
[1753289994538,0.01696827,117860.0,117850.0,0.69863778]
[1753289994815,0.0376277,117860.0,117850.0,0.69863778]
[1753289995267,0.0376277,117860.0,117850.0,0.74461457]
[1753289995472,0.01696827,117860.0,117850.0,0.74661457]
[1753289995696,0.03308873,117860.0,117850.0,0.33408209]
[1753289995920,0.20771158,117860.0,117850.0,0.0042]
[1753289996141,0.63582433,117860.0,117850.0,0.0042]
[1753289996355,0.22329177,117860.0,117850.0,0.0042]
[1753289997002,0.22329177,117860.0,117850.0,0.41473256]
[1753289997217,0.22429177,117860.0,117850.0,0.36899701]
[1753289997860,0.23277582,117860.0,117850.0,0.63509748]
[1753289998087,0.001,117860.0,117850.0,0.73252502]
[1753289998309,0.02745305,117860.0,117850.0,0.7155551]
[1753289998572,0.20563054,117860.0,117850.0,0.83740517]
[1753289998782,0.20563054,117860.0,117850.0,0.76646716]
[1753289998998,0.01896848,117860.0,117850.0,0.63827201]
[1753289999221,0.00948413,117860.0,117850.0,0.77495201]
[1753289999432,0.00848413,117860.0,117850.0,0.77595201]
[1753289999878,0.00848413,117860.0,117850.0,0.77695201]
[1753290000523,0.2206271,117870.0,117860.0,0.19514597]
[1753290000752,0.2206271,117870.0,117860.0,0.2036301]
[1753290000753,0.01994676,117870.0,117860.0,0.2036301]
[1753290001001,0.02545032,117870.0,117860.0,0.57042711]
[1753290001230,0.02545039,117870.0,117860.0,0.57042711]
[1753290001446,0.01696676,117870.0,117860.0,0.57042711]
[1753290001656,0.01696676,117870.0,117860.0,0.2036301]
[1753290001883,0.02545039,117870.0,117860.0,0.57042711]
[1753290002318,0.03493424,117870.0,117860.0,0.70706711]
[1753290002538,0.03493409,117870.0,117860.0,0.70706711]
[1753290002753,0.04341786,117870.0,117860.0,0.70706711]
[1753290002966,0.04441786,117870.0,117860.0,0.70706711]
[1753290003420,0.03043039,117870.0,117860.0,0.3402701]
[1753290003639,0.03891409,117870.0,117860.0,0.70706711]
[1753290003856,0.03043032,117870.0,117860.0,0.70706711]
[1753290004067,0.03891402,117870.0,117860.0,0.70706711]
[1753290004711,0.03891409,117870.0,117860.0,0.70706711]
[1753290005143,0.04739794,117870.0,117860.0,0.3402701]
[1753290005359,0.04739794,117870.0,117860.0,0.70706711]
[1753290006014,0.03891409,117870.0,117860.0,0.70706711]
[1753290006273,0.00498,117870.0,117860.0,0.70706711]
[1753290006495,0.22366283,117870.0,117860.0,0.69009877]
[1753290006716,0.02545255,117860.0,117850.0,0.62978686]
[1753290006938,0.0169682,117860.0,117850.0,0.77487222]
[1753290007152,0.0199482,117860.0,117850.0,0.77487222]
[1753290007370,0.01146399,117860.0,117850.0,0.77487222]
[1753290007589,0.0613306,117870.0,117860.0,0.1951459]
[1753290007807,0.01796697,117870.0,117860.0,0.56194291]
[1753290008035,0.03393415,117870.0,117860.0,0.56194291]
[1753290008257,0.75754379,117880.0,117870.0,0.19512934]
[1753290008258,0.60484143,117880.0,117870.0,0.19512934]
[1753290008481,0.05979838,117880.0,117870.0,0.56192635]
[1753290008703,0.00725278,117880.0,117870.0,0.72913119]
[1753290008913,0.00725278,117880.0,117870.0,1.0265509]
[1753290009144,1.59018471,117900.0,117890.0,0.18661441]
[1753290009357,1.0379242,117900.0,117890.0,0.70693559]
[1753290009570,1.01994412,117900.0,117890.0,0.70693559]
[1753290009786,1.01146258,117900.0,117890.0,0.70693559]
[1753290010035,0.50848118,117900.0,117890.0,0.70693559]
[1753290010248,0.50848111,117900.0,117890.0,0.70693559]
[1753290010487,0.502,117900.0,117890.0,0.70693559]
[1753290010920,0.51048111,117900.0,117890.0,0.70693559]
[1753290011146,0.50848111,117900.0,117890.0,0.70693559]
[1753290011369,0.51696229,117900.0,117890.0,0.70693559]
[1753290011577,0.53492502,117900.0,117890.0,0.70693559]
[1753290012011,0.54638664,117900.0,117890.0,0.57037559]
[1753290012196,0.53790502,117900.0,117890.0,0.70689559]
[1753290012441,0.54656938,117900.0,117890.0,0.70689559]
[1753290012652,0.54258931,117900.0,117890.0,0.70689559]
[1753290012863,0.54258931,117900.0,117890.0,0.70639559]
[1753290013082,0.53410791,117900.0,117890.0,0.70739559]
[1753290013300,0.53410791,117900.0,117890.0,0.70839559]
[1753290013521,0.52562665,117900.0,117890.0,0.70839559]
[1753290013733,0.53410805,117900.0,117890.0,0.70839559]
[1753290014410,0.72070663,117900.0,117890.0,0.1965966]
[1753290014626,0.54556959,117900.0,117890.0,0.69987361]
[1753290014835,0.53708805,117900.0,117890.0,0.70835559]
[1753290015062,0.71520552,117900.0,117890.0,0.69987361]
[1753290015278,0.70672434,117900.0,117890.0,0.3330766]
[1753290015502,0.70766075,117900.0,117890.0,0.13848]
[1753290015744,0.72356075,117900.0,117890.0,0.68340916]
[1753290016166,0.70766075,117900.0,117890.0,0.68340916]
[1753290019288,0.55112078,117900.0,117890.0,0.70885559]
[1753290019505,0.55410078,117900.0,117890.0,0.70885559]
[1753290019740,0.71525531,117900.0,117890.0,0.69189142]
[1753290019965,0.57947003,117900.0,117890.0,0.70885566]
[1753290020191,0.74910531,117900.0,117890.0,0.70885566]
[1753290020455,0.74910531,117900.0,117890.0,0.34205865]
[1753290020678,0.74910531,117900.0,117890.0,0.70885566]
[1753290020901,0.57098827,117900.0,117890.0,0.70885566]
[1753290021110,0.57098827,117900.0,117890.0,0.71733764]
[1753290021330,0.74910531,117900.0,117890.0,0.70885566]
[1753290021518,0.74910531,117900.0,117890.0,0.70037375]
[1753290022062,0.57098827,117900.0,117890.0,0.71733785]
[1753290022283,0.74910524,117900.0,117890.0,0.71733785]
[1753290022499,0.7491056,117900.0,117890.0,0.70037375]
[1753290022701,0.8855456,117900.0,117890.0,0.70037375]
[1753290022920,0.67552856,117900.0,117890.0,0.71733778]
[1753290023351,0.66704687,117900.0,117890.0,0.71733778]
[1753290023561,0.66704658,117900.0,117890.0,0.71733778]
[1753290023772,0.7079282,117900.0,117890.0,0.71733778]
[1753290023985,0.88604524,117900.0,117890.0,0.7088558]
[1753290024114,0.7079282,117900.0,117890.0,0.71733778]
[1753290024334,0.71640989,117900.0,117890.0,0.71733778]
[1753290024726,0.57996989,117900.0,117890.0,0.71733778]
[1753290025107,0.5714882,117900.0,117890.0,0.71733778]
[1753290025555,0.57996989,117900.0,117890.0,0.71733778]
[1753290025776,0.74960517,117900.0,117890.0,0.7088558]
[1753290025984,0.74112384,117900.0,117890.0,0.33357674]
[1753290026196,0.57148856,117900.0,117890.0,0.35054098]
[1753290026416,0.56300687,117900.0,117890.0,0.71733749]
[1753290026834,0.56300687,117900.0,117890.0,0.35054048]
[1753290027038,0.56300687,117900.0,117890.0,0.71733749]
[1753290027246,0.52865608,117900.0,117890.0,0.71733749]
[1753290027468,0.53713748,117900.0,117890.0,0.71733749]
[1753290028302,0.5456191,117900.0,117890.0,0.71733749]
[1753290028518,0.73963327,117900.0,117890.0,0.69189127]
[1753290028961,0.56999799,117900.0,117890.0,0.70037332]
[1753290029687,0.56999799,117900.0,117890.0,0.7088553]
[1753290029910,0.56151637,117900.0,117890.0,0.7088553]
[1753290030144,0.57847953,117900.0,117890.0,0.7088553]
[1753290030362,0.58696122,117900.0,117890.0,0.7088553]
[1753290030594,0.56999791,117900.0,117890.0,0.7088553]
[1753290030829,0.54455371,117900.0,117890.0,0.7088553]
[1753290031055,0.52567608,117900.0,117890.0,0.7088553]
[1753290031273,0.51719482,117900.0,117890.0,0.7088553]
[1753290031501,0.50871371,117900.0,117890.0,0.7088553]
[1753290032097,0.51184371,117900.0,117890.0,0.7088553]
[1753290032522,0.52880615,117900.0,117890.0,0.7088553]
[1753290032729,0.528806,117900.0,117890.0,0.7088553]
[1753290033158,0.5372874,117900.0,117890.0,0.7088553]
[1753290033424,0.528806,117900.0,117890.0,0.7088553]
[1753290033645,0.50871371,117900.0,117890.0,0.7402553]
[1753290033796,0.50871371,117900.0,117890.0,0.7244553]
[1753290033998,0.50871371,117900.0,117890.0,0.7088553]
[1753290034644,0.50871371,117900.0,117890.0,0.34205829]
[1753290034856,0.52567637,117900.0,117890.0,0.7088553]
[1753290035068,0.74866495,117900.0,117890.0,0.69173113]
[1753290035263,0.57902953,117900.0,117890.0,0.70369516]
[1753290035466,0.56206637,117900.0,117890.0,0.70369516]
[1753290035666,0.55358497,117900.0,117890.0,0.70369516]
[1753290035878,0.57054799,117900.0,117890.0,0.70369516]
[1753290036098,0.55358497,117900.0,117890.0,0.70369516]
[1753290036314,0.56206637,117900.0,117890.0,0.70369516]
[1753290036562,0.55358497,117900.0,117890.0,0.70369516]
[1753290036764,0.5620663,117900.0,117890.0,0.70369516]
[1753290037466,0.56188334,117900.0,117890.0,0.70369516]
[1753290037681,0.55340194,117900.0,117890.0,0.70369516]
[1753290037889,0.56188341,117900.0,117890.0,0.70369516]
[1753290038122,0.54618341,117900.0,117890.0,0.70369516]
[1753290038347,0.55466503,117900.0,117890.0,0.33689815]
[1753290038570,0.56138341,117900.0,117890.0,0.70369516]
[1753290039353,0.56986503,117900.0,117890.0,0.70369516]
[1753290039573,0.56138341,117900.0,117890.0,0.70369516]
[1753290039809,0.56986495,117900.0,117890.0,0.70369516]
[1753290040035,0.55290194,117900.0,117890.0,0.70369516]
[1753290040262,0.56138341,117900.0,117890.0,0.70369516]
[1753290040917,0.56986495,117900.0,117890.0,0.70369516]
[1753290041382,0.56138341,117900.0,117890.0,0.70369516]
[1753290042008,0.56974235,117900.0,117890.0,0.70369516]
[1753290042458,0.54429829,117900.0,117890.0,0.70369516]
[1753290042680,0.54606087,117900.0,117890.0,0.70369516]
[1753290043106,0.55454241,117900.0,117890.0,0.70369516]
[1753290043733,0.57832403,117900.0,117890.0,0.70369516]
[1753290043949,0.01696388,117890.0,117880.0,0.58577444]
[1753290044219,0.07101833,117890.0,117880.0,0.52662959]
[1753290044721,0.07101833,117890.0,117880.0,1.0297066]
[1753290045248,0.07101833,117890.0,117880.0,0.67139264]
[1753290045497,0.07101833,117890.0,117880.0,1.03818965]
[1753290045846,0.062536,117890.0,117880.0,1.03818965]
[1753290046675,0.07101826,117890.0,117880.0,1.03818965]
[1753290046888,0.062536,117890.0,117880.0,1.03818965]
[1753290047322,0.07101826,117890.0,117880.0,1.03818965]
[1753290047571,0.05405373,117890.0,117880.0,1.03818965]
[1753290047797,0.06253578,117890.0,117880.0,1.03818965]
[1753290048009,0.07101797,117890.0,117880.0,1.03818965]
[1753290048687,0.06253578,117890.0,117880.0,1.03818965]
[1753290049380,0.07101797,117890.0,117880.0,0.53511264]
[1753290049584,0.15348835,117890.0,117880.0,1.03814965]
[1753290049757,0.07101797,117890.0,117880.0,1.03814965]
[1753290050598,0.07101797,117890.0,117880.0,0.90190965]
[1753290050800,0.06253578,117890.0,117880.0,1.03814965]
[1753290051346,0.06253578,117890.0,117880.0,0.67135264]
[1753290051556,0.06253578,117890.0,117880.0,1.03814965]
[1753290051766,0.07101797,117890.0,117880.0,1.03814965]
[1753290051978,0.06253578,117890.0,117880.0,1.03814965]
[1753290052637,0.0795003,117890.0,117880.0,0.67135264]
[1753290052878,0.30532641,117890.0,117880.0,0.31438726]
[1753290053313,0.30532641,117890.0,117880.0,0.32287039]
[1753290053533,0.31380882,117890.0,117880.0,0.70663315]
[1753290053751,0.31380882,117890.0,117880.0,0.33135337]
[1753290053974,0.30532663,117890.0,117880.0,0.33135337]
[1753290054189,0.30532663,117890.0,117880.0,0.33983621]
[1753290054608,0.30532663,117890.0,117880.0,0.20359621]
[1753290054824,0.30532663,117890.0,117880.0,0.33131337]
[1753290055463,0.22370441,117890.0,117880.0,0.33131337]
[1753290055681,0.22370441,117890.0,117880.0,0.69811038]
[1753290055896,0.21522208,117890.0,117880.0,0.30586406]
[1753290056149,0.21522208,117890.0,117880.0,0.31434726]
[1753290056367,0.80558539,117900.0,117890.0,0.178132]
[1753290056595,0.96089869,117900.0,117890.0,0.54492901]
[1753290056804,0.96089869,117900.0,117890.0,0.55341127]
[1753290056987,0.96089869,117900.0,117890.0,0.54492901]
[1753290057231,0.96089869,117900.0,117890.0,0.18661419]
[1753290057450,0.79126298,117900.0,117890.0,0.20357829]
[1753290057663,0.8007446,117900.0,117890.0,0.20357829]
[1753290057881,0.97886164,117900.0,117890.0,0.20357829]
[1753290058098,0.97038031,117900.0,117890.0,0.19509631]
[1753290058310,0.97038031,117900.0,117890.0,0.20357836]
[1753290058775,0.97238031,117900.0,117890.0,0.54492901]
[1753290058994,0.97238031,117900.0,117880.0,0.3313125]
[1753290058995,0.04766423,117890.0,117880.0,0.3313125]
[1753290059206,0.04766423,117890.0,117880.0,0.69810951]
[1753290059417,0.05276423,117890.0,117880.0,0.69810951]
[1753290059631,0.05276416,117890.0,117880.0,0.69810951]
[1753290059853,0.0442819,117890.0,117880.0,0.69810951]
[1753290060117,0.05276402,117890.0,117880.0,0.69810951]
[1753290060594,0.32385573,117890.0,117880.0,0.32279024]
[1753290060825,0.32385573,117890.0,117880.0,0.33127301]
[1753290061038,0.14572358,117890.0,117880.0,0.33975592]
[1753290061262,0.15420591,117890.0,117880.0,0.34823861]
[1753290061496,0.33233799,117890.0,117880.0,0.71503562]
[1753290061739,0.15420591,117890.0,117880.0,0.71503562]
[1753290061945,0.14672358,117890.0,117880.0,0.71503562]
[1753290062153,0.15520591,117890.0,117880.0,0.71503562]
[1753290062369,0.32485609,117890.0,117880.0,0.32279024]
[1753290062581,0.32485609,117890.0,117880.0,0.70655293]
[1753290062792,0.14024168,117890.0,117880.0,0.70655293]
[1753290063007,0.32685573,117890.0,117880.0,0.69807016]
[1753290063243,0.30889171,117890.0,117880.0,0.31430726]
[1753290063456,0.30889171,117890.0,117880.0,0.32279031]
[1753290063665,0.30889171,117890.0,117880.0,0.33975606]
[1753290063897,0.30889171,117890.0,117880.0,0.34823875]
[1753290064109,0.30889171,117890.0,117880.0,0.71503576]
[1753290064333,0.30889171,117890.0,117880.0,0.68958732]
[1753290064543,0.30889171,117890.0,117880.0,0.6980703]
[1753290064945,0.30889171,117890.0,117880.0,0.70655321]
[1753290065406,0.30889171,117890.0,117880.0,0.6980703]
[1753290065839,0.002,117890.0,117880.0,1.42183291]
[1753290066054,0.002,117890.0,117880.0,1.53831021]
[1753290066695,0.002,117890.0,117880.0,1.1715132]
[1753290067151,0.002,117890.0,117880.0,1.53831021]
[1753290069812,0.50004935,117900.0,117890.0,0.56629625]
[1753290070039,0.50004935,117900.0,117890.0,1.15369056]
[1753290070706,0.50004935,117900.0,117890.0,1.23816786]
[1753290071154,0.50004935,117900.0,117890.0,1.15369056]
[1753290072814,0.50004935,117900.0,117890.0,1.15669056]
[1753290073241,0.50004935,117900.0,117890.0,1.15469056]
[1753290073445,0.50004935,117900.0,117890.0,1.15369056]
[1753290074262,0.50104935,117900.0,117890.0,1.15369056]
[1753290074464,0.50304935,117900.0,117890.0,1.15369056]
[1753290075110,0.50304935,117900.0,117890.0,1.23816786]
[1753290075516,0.50220118,117900.0,117890.0,1.23816786]
[1753290075882,0.07428531,117900.0,117890.0,1.23816786]
[1753290076086,1e-08,117900.0,117890.0,1.67259241]
[1753290076295,0.44222824,117940.0,117930.0,0.53503007]
[1753290076526,0.45290598,117940.0,117930.0,1.11002543]
[1753290076732,0.45290591,117940.0,117930.0,1.11002543]
[1753290077161,0.46138436,117940.0,117930.0,1.11002543]
[1753290077374,0.4444276,117940.0,117930.0,1.11002543]
[1753290077585,0.46238443,117940.0,117930.0,1.11002543]
[1753290077796,0.46745515,117940.0,117930.0,1.03786708]
[1753290078007,0.4589767,117940.0,117930.0,1.03786708]
[1753290078220,0.46745515,117940.0,117930.0,1.03786708]
[1753290078405,0.4589767,117940.0,117930.0,1.03786708]
[1753290078648,0.46745522,117940.0,117930.0,1.03786708]
[1753290078861,0.46745522,117940.0,117930.0,1.12234438]
[1753290079304,0.46845515,117940.0,117930.0,1.12234438]
[1753290079539,0.4599767,117940.0,117930.0,1.03786708]
[1753290079758,0.05997677,117940.0,117930.0,1.03786708]
[1753290079923,0.05149839,117940.0,117930.0,1.03786708]
[1753290080166,0.05997677,117940.0,117930.0,0.67107007]
[1753290080341,0.05997677,117940.0,117930.0,1.03786708]
[1753290080574,0.04302015,117940.0,117930.0,1.03786708]
[1753290081329,0.05149839,117940.0,117930.0,1.03786708]
[1753290081539,0.04302015,117940.0,117930.0,1.03786708]
[1753290082639,0.04302015,117940.0,117930.0,1.12234438]
[1753290083076,0.00612015,117940.0,117930.0,1.03786708]
[1753290083486,0.00512015,117940.0,117930.0,1.03886708]
[1753290083852,0.00512015,117940.0,117930.0,1.15414438]
[1753290084267,4.936e-05,117940.0,117930.0,1.15414438]
[1753290084795,4.936e-05,117940.0,117930.0,1.22694185]
[1753290085038,4.936e-05,117940.0,117930.0,1.31241915]
[1753290085456,0.03545,117970.0,117960.0,0.56177747]
[1753290085661,0.03594356,117970.0,117960.0,0.69773747]
[1753290086404,0.03594356,117970.0,117960.0,1.06453448]
[1753290086630,0.04114919,117970.0,117960.0,1.14901178]
[1753290086842,0.04214919,117970.0,117960.0,1.14901178]
[1753290087264,0.04214919,117970.0,117960.0,0.78221477]
[1753290087710,0.04314919,117970.0,117960.0,0.75541776]
[1753290087923,0.00769919,117970.0,117960.0,1.12221477]
[1753290088133,0.00769919,117970.0,117960.0,0.75541776]
[1753290088350,0.00769919,117970.0,117960.0,1.12221477]
[1753290088563,0.00569919,117970.0,117960.0,1.12221477]
[1753290088782,0.00669919,117970.0,117960.0,1.12221477]
[1753290088986,0.00769919,117970.0,117960.0,0.98625477]
[1753290089212,0.01821534,117970.0,117960.0,1.12217477]
[1753290089423,0.04951534,117970.0,117960.0,1.03769747]
[1753290089637,0.05799164,117970.0,117960.0,1.03869747]
[1753290089855,0.06857815,117970.0,117960.0,0.90277747]
[1753290090067,0.06010164,117970.0,117960.0,0.90277747]
[1753290090280,0.06010164,117970.0,117960.0,1.03869747]
[1753290090554,0.24658921,117970.0,117960.0,0.88582337]
[1753290090767,0.08553124,117970.0,117960.0,0.6718606]
[1753290090986,0.06857801,117970.0,117960.0,1.04713455]